bitfinex/quotes_SOLUSD_20251207
["timestamp","ask_amount","ask_price","bid_price","bid_amount"]
[1765121652440,0.66,129.57,129.51,8.56]
[1765121652759,9.77545238,129.64,129.51,9.26]
[1765121652760,7.71680604,129.59,129.51,9.26]
[1765121652910,7.71680604,129.59,129.52,0.7]
[1765121652911,0.66,129.59,129.52,0.7]
[1765121653111,0.66,129.58,129.53,8.56]
[1765121653316,27.00200585,129.62,129.53,8.56]
[1765121653317,0.66,129.6,129.53,8.56]
[1765121653536,0.66,129.6,129.54,8.41962328]
[1765121653735,16.52558677,129.61,129.54,8.41962328]
[1765121653923,8.37503804,129.62,129.55,0.7]
[1765121654125,0.66,129.61,129.56,8.56]
[1765121654440,8.80994492,129.6,129.56,8.56]
[1765121654619,9.46994492,129.61,129.56,8.56]
[1765121654815,0.66,129.6,129.56,0.7]
[1765121655022,0.66,129.6,129.56,9.26]
[1765121655226,0.66,129.6,129.56,8.56]
[1765121655415,8.37643882,129.6,129.56,8.56]
[1765121655618,8.37643882,129.6,129.56,16.97825207]
[1765121655942,0.66,129.6,129.56,16.97825207]
[1765121656443,0.66,129.62,129.57,0.7]
[1765121656738,0.66,129.62,129.56,7.71825207]
[1765121656949,0.66,129.62,129.57,8.54]
[1765121657632,7.71545405,129.61,129.57,16.25779043]
[1765121657942,8.3750788,129.62,129.57,16.25779043]
[1765121658147,0.66,129.61,129.57,16.95779043]
[1765121658363,0.66,129.62,129.58,0.7]
[1765121658641,25.11880892,129.63,129.57,16.25779043]
[1765121658820,0.66,129.61,129.57,16.95779043]
[1765121659340,33.49331524,129.63,129.58,8.41692123]
[1765121659721,0.66,129.62,129.58,8.41692123]
[1765121660614,8.37489371,129.62,129.58,8.41692123]
[1765121660820,8.37489371,129.62,129.58,0.7]
[1765121661220,8.37489371,129.62,129.57,16.25760535]
[1765121661221,0.72,129.61,129.57,16.25760535]
[1765121661444,8.43489371,129.62,129.58,8.37718805]
[1765121661758,0.72,129.65,129.58,8.37718805]
[1765121662051,8.43318864,129.65,129.59,0.66]
[1765121662222,8.80994492,129.64,129.6,8.54]
[1765121662429,9.52994492,129.64,129.6,8.54]
[1765121662627,0.72,129.63,129.6,8.54]
[1765121662822,16.52371033,129.64,129.6,8.54]
[1765121663021,9.52994492,129.64,129.6,16.91602193]
[1765121663224,9.52994492,129.64,129.61,0.66]
[1765121663621,24.74152962,129.66,129.61,0.66]
[1765121663828,8.80994492,129.67,129.61,0.66]
[1765121664752,8.80994492,129.67,129.62,7.71485881]
[1765121665049,8.43148551,129.68,129.63,9.2]
[1765121665050,8.80994492,129.68,129.63,9.2]
[1765121665249,0.72,129.69,129.63,9.2]
[1765121665578,8.80994492,129.69,129.64,0.66]
[1765121665857,0.72,129.68,129.62,7.71485881]
[1765121666045,0.72,129.68,129.63,8.54]
[1765121666946,7.71188401,129.67,129.63,8.54]
[1765121667147,7.71188401,129.67,129.63,16.91415501]
[1765121667331,7.71151464,129.68,129.64,0.66]
[1765121667531,8.43151464,129.68,129.64,0.66]
[1765121667748,0.72,129.68,129.64,0.66]
[1765121668248,17.24084702,129.69,129.64,0.66]
[1765121668552,17.24076251,129.69,129.64,0.66]
[1765121668921,8.80994492,129.69,129.65,7.71307365]
[1765121669351,0.1,129.72,129.66,9.2]
[1765121669352,8.52900667,129.72,129.66,9.2]
[1765121669653,8.52900667,129.72,129.67,0.66]
[1765121670146,9.52994492,129.71,129.66,8.54]
[1765121670450,9.52994492,129.71,129.64,8.3734803]
[1765121670646,8.80994492,129.69,129.64,8.3734803]
[1765121671144,0.72,129.68,129.64,8.3734803]
[1765121671751,0.72,129.68,129.64,7.7134803]
[1765121672136,0.72,129.68,129.63,16.25416671]
[1765121672335,0.72,129.68,129.63,16.91416671]
[1765121672541,0.72,129.68,129.64,7.71366472]
[1765121673477,16.52182893,129.67,129.63,8.54]
[1765121673959,9.52994492,129.67,129.63,16.9142537]
[1765121674864,9.52994492,129.67,129.64,0.66]
[1765121675040,17.24184404,129.67,129.63,16.9142537]
[1765121675874,0.72,129.68,129.64,8.3733238]
[1765121676859,0.72,129.7,129.65,8.37282694]
[1765121677251,0.72,129.7,129.66,9.2]
[1765121678142,8.80994492,129.71,129.67,0.66]
[1765121678348,17.128864,129.72,129.67,0.66]
[1765121678548,0.72,129.71,129.67,0.66]
[1765121678964,8.80994492,129.7,129.66,8.54]
[1765121679218,8.80994492,129.7,129.67,0.66]
[1765121679377,0.72,129.71,129.67,8.37177278]
[1765121679576,16.408864,129.72,129.67,27.65148281]
[1765121679877,0.1,129.72,129.68,0.66]
[1765121680046,0.1,129.72,129.69,8.54]
[1765121680449,0.1,129.72,129.7,0.66]
[1765121681065,0.1,129.72,129.7,8.37007391]
[1765121681680,0.1,129.72,129.7,7.71007391]
[1765121682077,0.1,129.72,129.7,8.37007391]
[1765121682250,0.1,129.72,129.68,9.2]
[1765121682251,0.82,129.72,129.68,9.2]
[1765121682446,0.82,129.72,129.68,8.54]
[1765121682647,8.80994492,129.71,129.64,0.66]
[1765121682852,8.80994492,129.71,129.64,16.25343383]
[1765121683063,16.52063965,129.69,129.64,16.25343383]
[1765121683476,0.72,129.68,129.64,16.25343383]
[1765121684166,8.80994492,129.69,129.65,0.66]
[1765121684365,0.72,129.7,129.65,0.66]
[1765121684799,7.70966645,129.71,129.65,0.66]
[1765121685094,17.33887382,129.72,129.65,0.66]
[1765121685269,9.62994492,129.72,129.65,0.66]
[1765121685471,0.72,129.71,129.66,0.5]
[1765121685690,0.72,129.71,129.67,8.54]
[1765121685892,0.72,129.71,129.67,9.2]
[1765121686081,0.72,129.71,129.67,8.54]
[1765121686277,0.72,129.71,129.68,7.71128932]
[1765121687090,16.61896797,129.72,129.69,0.66]
[1765121687091,8.90994492,129.72,129.69,0.66]
[1765121687273,9.62994492,129.72,129.68,8.37128932]
[1765121687893,0.1,129.72,129.69,0.66]
[1765121688103,0.1,129.72,129.68,7.71128932]
[1765121688404,0.82,129.72,129.68,16.91128932]
[1765121689366,0.1,129.72,129.68,16.25128932]
[1765121689571,0.1,129.72,129.69,0.66]
[1765121690494,0.1,129.72,129.69,8.37026118]
[1765121691906,8.80994492,129.71,129.66,8.54]
[1765121692079,8.80994492,129.71,129.66,16.97223123]
[1765121692280,9.51994492,129.7,129.66,16.97223123]
[1765121692501,17.23007897,129.7,129.66,16.97223123]
[1765121692704,0.71,129.69,129.66,16.25223123]
[1765121692879,16.52007897,129.7,129.66,16.25223123]
[1765121692880,8.80994492,129.7,129.66,16.25223123]
[1765121693081,16.408864,129.72,129.67,0.72]
[1765121693507,0.1,129.72,129.67,0.72]
[1765121693909,0.1,129.72,129.67,9.52994492]
[1765121694281,0.1,129.72,129.68,0.72]
[1765121694587,0.1,129.72,129.7,7.71010023]
[1765121695105,0.1,129.72,129.71,0.72]
[1765121695800,0.1,129.72,129.7,7.71010023]
[1765121696100,0.1,129.72,129.7,8.38010023]
[1765121696803,0.1,129.72,129.71,0.67]
[1765121696994,0.1,129.72,129.7,8.38010023]
[1765121697507,0.1,129.72,129.68,7.71089957]
[1765121697712,0.77,129.72,129.68,16.92089957]
[1765121697913,0.77,129.72,129.66,19.28057381]
[1765121698124,0.77,129.72,129.67,8.54]
[1765121698308,0.77,129.72,129.67,9.21]
[1765121698727,8.47912167,129.72,129.68,7.71123024]
[1765121698898,8.47912167,129.72,129.67,8.54]
[1765121699098,8.80994492,129.7,129.64,19.9535699]
[1765121699316,8.80994492,129.7,129.64,28.4935699]
[1765121699523,0.67,129.69,129.65,7.71283566]
[1765121699700,0.67,129.69,129.64,16.25345078]
[1765121699903,0.67,129.69,129.64,16.92345078]
[1765121700230,8.80994492,129.68,129.64,8.54]
[1765121700422,16.308864,129.69,129.66,7.71215301]
[1765121700623,0.67,129.71,129.67,16.25167627]
[1765121700842,8.38002185,129.71,129.66,7.71240743]
[1765121700999,8.38002185,129.71,129.66,16.25240743]
[1765121701191,0.67,129.7,129.66,16.25240743]
[1765121701620,7.80898142,129.72,129.67,8.38164032]
[1765121701805,8.47898142,129.72,129.67,8.38164032]
[1765121702007,0.67,129.71,129.67,8.38164032]
[1765121702211,0.67,129.71,129.66,8.54]
[1765121702623,0.67,129.71,129.66,16.25211974]
[1765121702807,7.71010023,129.7,129.66,16.25211974]
[1765121703324,0.67,129.69,129.66,8.54]
[1765121703518,0.67,129.69,129.64,7.71359015]
[1765121703817,0.67,129.69,129.65,8.54]
[1765121704394,8.80994492,129.68,129.62,7.71440285]
[1765121704615,8.80994492,129.68,129.62,9.21]
[1765121704798,17.1913917,129.68,129.63,8.38426367]
[1765121705424,19.27525057,129.7,129.64,0.67]
[1765121705425,7.71105896,129.69,129.64,0.67]
[1765121705726,0.67,129.67,129.63,7.71426367]
[1765121706223,8.38105896,129.69,129.64,0.67]
[1765121706429,7.71105896,129.69,129.64,0.67]
[1765121706620,25.78880892,129.68,129.6,19.95957837]
[1765121706947,8.80994492,129.66,129.6,7.71601854]
[1765121707095,8.38188401,129.67,129.61,9.23]
[1765121707495,8.38188401,129.67,129.62,0.67]
[1765121707921,0.67,129.69,129.62,0.67]
[1765121708126,0.67,129.68,129.6,7.71601854]
[1765121708313,8.80994492,129.67,129.6,16.94601854]
[1765121708732,0.67,129.66,129.6,16.94601854]
[1765121708915,7.71195662,129.67,129.61,0.67]
[1765121709623,8.3818893,129.67,129.61,0.67]
[1765121710022,8.80994492,129.66,129.61,0.67]
[1765121710231,0.67,129.66,129.61,0.67]
[1765121710805,0.67,129.66,129.62,7.71485881]
[1765121711006,24.69033642,129.68,129.63,0.67]
[1765121711219,8.38147242,129.68,129.63,0.67]
[1765121711421,0.67,129.67,129.62,7.71485881]
[1765121711625,0.67,129.67,129.62,16.27485881]
[1765121711905,0.67,129.67,129.62,16.94485881]
[1765121712508,7.71247879,129.66,129.62,16.94485881]
[1765121712706,0.67,129.66,129.62,16.94485881]
[1765121712903,7.71207253,129.67,129.62,16.27485881]
[1765121713127,0.67,129.66,129.62,16.94485881]
[1765121714032,7.71207253,129.67,129.63,0.67]
[1765121714243,8.38207253,129.67,129.63,0.67]
[1765121714908,8.38207253,129.67,129.63,8.38389506]
[1765121715738,0.67,129.66,129.62,7.71462586]
[1765121715906,0.67,129.66,129.62,16.27462586]
[1765121717118,8.3825936,129.66,129.62,16.27462586]
[1765121717511,8.3825936,129.66,129.62,16.94462586]
[1765121717935,0.67,129.65,129.62,16.94462586]
[1765121718107,0.67,129.65,129.62,16.27462586]
[1765121718308,0.67,129.65,129.62,16.94462586]
[1765121719054,8.38188401,129.67,129.62,16.94462586]
[1765121719222,17.191446,129.68,129.63,0.67]
[1765121719732,0.67,129.67,129.63,0.67]
[1765121720140,0.67,129.71,129.65,16.308864]
[1765121720438,0.67,129.71,129.66,8.56]
[1765121720624,0.67,129.71,129.66,9.28]
[1765121720947,0.67,129.71,129.67,0.72]
[1765121721306,8.37954964,129.71,129.68,7.71128932]
[1765121722531,7.70954964,129.71,129.67,7.71188401]
[1765121722740,0.7,129.7,129.67,7.71188401]
[1765121723439,8.40954964,129.71,129.67,8.43188401]
[1765121723837,7.70954964,129.71,129.67,8.43188401]
[1765121724039,0.1,129.72,129.68,0.72]
[1765121724343,0.8,129.72,129.68,0.72]
[1765121724735,0.1,129.72,129.69,8.56]
[1765121725137,0.1,129.72,129.7,0.72]
[1765121725520,0.1,129.72,129.71,16.308864]
[1765121725828,0.1,129.8,129.7,17.028864]
[1765121726030,0.1,129.8,129.75,16.308864]
[1765121726423,0.1,129.8,129.76,9.28]
[1765121726841,0.1,129.8,129.77,9.28]
[1765121727145,0.8,129.8,129.77,8.56]
[1765121727335,0.8,129.8,129.72,34.68385196]
[1765121727544,0.8,129.8,129.73,9.3]
[1765121728046,0.8,129.8,129.74,0.72]
[1765121728424,8.50429572,129.8,129.75,7.70712909]
[1765121728626,8.80994492,129.79,129.72,36.30114275]
[1765121728855,9.50994492,129.79,129.74,16.26771556]
[1765121729028,0.7,129.78,129.74,8.56]
[1765121729228,0.1,129.8,129.75,0.72]
[1765121729431,0.1,129.8,129.77,16.308864]
[1765121729623,0.1,129.8,129.78,8.58]
[1765121729939,0.1,129.85,129.79,0.72]
[1765121730940,0.1,129.85,129.8,43.27342485]
[1765121731146,0.1,129.85,129.81,8.58]
[1765121731350,0.1,129.85,129.81,9.3]
[1765121731551,0.1,129.85,129.82,0.72]
[1765121732247,0.1,129.85,129.84,16.308864]
[1765121732437,0.1,129.85,129.84,24.888864]
[1765121732636,0.1,129.85,129.84,25.608864]
[1765121732851,8.80994492,129.93,129.84,33.31065081]
[1765121733040,8.80994492,129.93,129.85,0.72]
[1765121733240,200.15992914,130.0,129.85,0.72]
[1765121733458,7.69230769,130.0,129.85,0.72]
[1765121733756,0.7,129.99,129.9,16.308864]
[1765121734136,8.80994492,129.98,129.91,0.72]
[1765121734447,26.92116988,130.01,129.91,0.72]
[1765121734448,0.7,130.01,129.95,16.308864]
[1765121734647,0.7,130.01,129.96,8.58]
[1765121734848,7.69230769,130.0,129.96,8.58]
[1765121735022,8.80994492,129.99,129.95,8.58]
[1765121735228,9.50994492,129.99,129.95,8.58]
[1765121735427,8.80994492,129.99,129.95,16.99508958]
[1765121735647,8.80994492,129.99,129.95,8.58]
[1765121735855,9.50994492,129.99,129.95,8.58]
[1765121736043,9.50994492,129.99,129.94,8.41585443]
[1765121736353,0.7,129.98,129.95,8.58]
[1765121736556,0.7,129.98,129.89,0.72]
[1765121736862,0.7,129.98,129.9,8.58]
[1765121737041,0.7,129.98,129.89,8.58]
[1765121737042,8.80994492,129.96,129.89,8.58]
[1765121737655,8.80994492,129.96,129.9,8.41785514]
[1765121737840,0.7,130.0,129.9,27.66342865]
[1765121738045,0.7,130.0,129.91,0.72]
[1765121738553,8.80994492,129.99,129.91,1.22]
[1765121738752,8.80994492,129.99,129.92,8.58]
[1765121738952,8.80994492,129.99,129.91,1.22]
[1765121738953,8.80994492,129.96,129.91,9.08]
[1765121739282,8.80994492,129.96,129.89,7.69876986]
[1765121739283,8.80994492,129.96,129.9,16.27815063]
[1765121739454,7.69353615,129.98,129.91,7.69748196]
[1765121739636,9.50994492,129.97,129.92,8.6]
[1765121740037,0.7,129.96,129.91,7.69748196]
[1765121740437,0.7,129.96,129.91,8.58]
[1765121740638,0.7,129.96,129.9,8.41816243]
[1765121740938,26.93343593,129.95,129.9,8.58]
[1765121741140,0.7,129.94,129.9,8.58]
[1765121741563,8.80994492,129.93,129.88,8.58]
[1765121741856,17.008864,129.94,129.88,0.72]
[1765121742050,7.69526741,129.95,129.89,0.72]
[1765121742356,0.7,129.94,129.89,0.72]
[1765121742558,0.7,129.94,129.87,36.24990292]
[1765121742759,0.7,129.94,129.88,0.72]
[1765121742955,7.69526741,129.95,129.89,7.69882208]
[1765121743133,16.50521233,129.95,129.89,7.69882208]
[1765121743333,7.69526741,129.95,129.9,0.72]
[1765121743861,0.7,129.94,129.89,8.19882208]
[1765121744040,0.7,129.94,129.9,8.58]
[1765121744244,0.7,129.94,129.89,17.49882208]
[1765121744546,7.69526741,129.95,129.9,0.72]
[1765121744744,7.69526741,129.95,129.89,16.77882208]
[1765121744942,28.04768739,129.96,129.89,0.5]
[1765121744943,7.69704433,129.92,129.89,0.5]
[1765121745150,0.7,129.94,129.89,7.69862054]
[1765121745352,0.7,129.94,129.89,8.41862054]
[1765121746247,8.80994492,129.93,129.88,8.58]
[1765121746444,8.80994492,129.93,129.86,7.70039404]
[1765121746645,0.7,129.92,129.86,16.28039404]
[1765121746852,8.80994492,129.91,129.86,8.58]
[1765121747051,8.80994492,129.91,129.86,16.28020136]
[1765121747238,0.7,129.9,129.86,16.28020136]
[1765121747639,0.7,129.9,129.85,8.42105019]
[1765121747864,0.7,129.9,129.86,7.70056357]
[1765121748247,8.39853344,129.9,129.85,9.3]
[1765121748642,8.39853344,129.9,129.86,0.72]
[1765121749866,7.69853344,129.9,129.85,16.28095153]
[1765121750049,0.7,129.89,129.84,7.70176097]
[1765121750254,8.80994492,129.88,129.84,8.58]
[1765121750654,8.80994492,129.88,129.79,16.308864]
[1765121750655,8.80994492,129.86,129.79,19.26140115]
[1765121750853,8.80994492,129.86,129.8,8.58]
[1765121751170,0.69,129.86,129.82,7.70249088]
[1765121751846,8.39092874,129.86,129.81,7.70356675]
[1765121752266,8.39092874,129.86,129.81,16.94356675]
[1765121752267,0.69,129.85,129.81,16.94356675]
[1765121752973,8.80994492,129.84,129.78,16.28521551]
[1765121753371,0.69,129.83,129.78,16.28521551]
[1765121753567,0.69,129.83,129.78,8.58]
[1765121753964,8.39271921,129.83,129.79,7.70471813]
[1765121754161,24.69949947,129.86,129.79,8.36471813]
[1765121754357,8.58,129.87,129.79,8.36471813]
[1765121754358,16.51015659,129.87,129.8,0.66]
[1765121754683,17.20015659,129.87,129.8,0.66]
[1765121755557,17.20015659,129.87,129.81,7.70356675]
[1765121756279,17.20015659,129.87,129.81,8.36356675]
[1765121756573,17.20015659,129.87,129.82,8.6]
[1765121756772,17.20015659,129.87,129.82,16.30255366]
[1765121756981,16.51015659,129.87,129.82,16.96255366]
[1765121757270,17.20015659,129.87,129.83,0.66]
[1765121757475,0.69,129.86,129.82,16.96255366]
[1765121759175,8.3910356,129.86,129.82,8.36255366]
[1765121759372,8.3910356,129.86,129.82,7.70255366]
[1765121759675,0.69,129.85,129.81,8.58]
[1765121760282,0.69,129.85,129.82,7.70289429]
[1765121760575,17.20016311,129.87,129.82,8.36289429]
[1765121760747,16.51016311,129.87,129.82,7.70289429]
[1765121761052,0.69,129.89,129.83,0.66]
[1765121761252,7.69763682,129.91,129.84,26.95625384]
[1765121761451,8.38763682,129.91,129.85,8.58]
[1765121761652,8.38763682,129.91,129.85,9.24]
[1765121762281,8.38763682,129.91,129.86,7.70060064]
[1765121762675,0.69,129.9,129.86,8.36060064]
[1765121763183,16.50721622,129.92,129.87,0.66]
[1765121763485,9.49994492,129.91,129.86,8.58]
[1765121763778,9.49994492,129.91,129.85,16.94100227]
[1765121763983,0.69,129.9,129.85,16.94100227]
[1765121764282,8.3884333,129.9,129.85,16.94100227]
[1765121764463,8.3884333,129.9,129.85,16.28100227]
[1765121764664,8.3884333,129.9,129.85,16.94100227]
[1765121765081,9.49994492,129.92,129.86,0.66]
[1765121765379,17.19701819,129.92,129.86,0.66]
[1765121765678,0.69,129.91,129.84,7.70154618]
[1765121765853,8.80994492,129.9,129.84,8.58]
[1765121766053,9.49994492,129.91,129.83,8.36224419]
[1765121766253,7.69882208,129.89,129.83,16.94224419]
[1765121766479,8.80994492,129.88,129.83,16.28224419]
[1765121766683,9.49994492,129.88,129.83,8.36224419]
[1765121766982,0.69,129.87,129.82,16.28273773]
[1765121767486,8.80994492,129.86,129.81,16.2833289]
[1765121767684,0.69,129.85,129.8,7.70392665]
[1765121767882,0.69,129.85,129.79,8.58]
[1765121768087,8.80994492,129.84,129.78,0.66]
[1765121768257,8.80994492,129.84,129.76,8.36646139]
[1765121768258,26.95833011,129.83,129.76,8.36646139]
[1765121768463,8.80994492,129.82,129.75,7.70697725]
[1765121768667,0.69,129.81,129.75,16.94697725]
[1765121768978,17.20185491,129.84,129.76,8.3662963]
[1765121769180,8.80994492,129.83,129.76,27.63263415]
[1765121769356,9.49994492,129.83,129.77,0.66]
[1765121769656,0.69,129.82,129.77,0.66]
[1765121770074,8.39190999,129.84,129.77,0.66]
[1765121770283,0.69,129.84,129.77,0.66]
[1765121770581,0.69,129.84,129.78,26.96871628]
[1765121770776,8.39189824,129.84,129.79,8.6]
[1765121770984,8.39189824,129.84,129.79,9.26]
[1765121771553,7.70189824,129.84,129.79,9.26]
[1765121771752,0.69,129.87,129.8,27.62456085]
[1765121772183,0.69,129.87,129.81,0.66]
[1765121772559,8.3902108,129.87,129.81,0.66]
[1765121772881,0.69,129.87,129.81,0.66]
[1765121773563,17.19895904,129.89,129.81,0.66]
[1765121773777,17.19895904,129.89,129.82,26.9604067]
[1765121774081,17.19895904,129.89,129.83,8.58]
[1765121774290,17.19895904,129.89,129.83,9.24]
[1765121774471,0.69,129.88,129.83,9.24]
[1765121774984,0.69,129.88,129.84,0.66]
[1765121775283,0.69,129.88,129.83,9.24]
[1765121775489,8.38957125,129.88,129.83,9.24]
[1765121775667,0.69,129.9,129.84,0.66]
[1765121775862,0.69,129.89,129.83,7.70215027]
[1765121776190,8.80994492,129.88,129.83,7.70215027]
[1765121776573,0.69,129.87,129.83,8.58]
[1765121776879,8.80994492,129.89,129.83,16.28235072]
[1765121776880,9.49994492,129.89,129.83,16.28235072]
[1765121777082,8.80994492,129.89,129.84,0.66]
[1765121777264,9.49994492,129.89,129.84,0.66]
[1765121777464,17.19905327,129.89,129.85,7.70119368]
[1765121777886,0.69,129.89,129.85,8.36119368]
[1765121778871,7.69896756,129.89,129.85,7.70119368]
[1765121779055,9.49994492,129.9,129.86,0.66]
[1765121779463,0.69,129.89,129.85,7.70119368]
[1765121779688,0.69,129.89,129.85,8.36119368]
[1765121780068,16.998864,129.91,129.86,0.66]
[1765121780565,0.69,129.91,129.86,0.66]
[1765121780767,7.69726444,129.92,129.87,8.58]
[1765121781189,9.52994492,129.93,129.88,0.67]
[1765121781190,7.6965395,129.93,129.88,0.67]
[1765121781395,8.4165395,129.93,129.88,0.67]
[1765121781598,0.72,129.92,129.88,0.67]
[1765121782190,0.72,129.92,129.89,7.69882208]
[1765121782369,17.2260141,129.94,129.89,7.69882208]
[1765121782569,0.72,129.93,129.89,8.36882208]
[1765121783173,9.52994492,129.93,129.88,7.699387]
[1765121783497,0.72,129.92,129.88,8.369387]
[1765121784183,8.41737212,129.92,129.88,8.369387]
[1765121784385,8.41737212,129.92,129.86,0.67]
[1765121784582,9.52994492,129.91,129.86,8.58]
[1765121784782,9.52994492,129.91,129.85,7.70118427]
[1765121784978,0.72,129.9,129.84,8.37155688]
[1765121785191,8.80994492,129.89,129.84,8.37155688]
[1765121785394,8.80994492,129.89,129.83,7.70236134]
[1765121785696,9.52994492,129.88,129.83,16.28236134]
[1765121785896,9.52994492,129.88,129.84,7.70171264]
[1765121786091,8.4201283,129.87,129.83,16.28211832]
[1765121786290,8.4201283,129.87,129.83,16.95211832]
[1765121786485,0.72,129.86,129.82,16.28277766]
[1765121786688,0.72,129.86,129.81,7.70334181]
[1765121786999,0.72,129.86,129.78,19.26269188]
[1765121787000,8.80994492,129.85,129.78,8.3751395]
[1765121787202,8.80994492,129.85,129.8,7.70405764]
[1765121787403,0.72,129.85,129.81,7.70319329]
[1765121787585,16.308864,129.86,129.81,7.70319329]
[1765121787771,0.72,129.85,129.81,8.37319329]
[1765121788194,8.42121324,129.85,129.81,8.37319329]
[1765121788983,8.42121324,129.85,129.79,8.58]
[1765121788984,9.52994492,129.84,129.79,8.58]
[1765121789193,9.52994492,129.84,129.79,9.25]
[1765121789400,17.23115816,129.85,129.8,0.67]
[1765121789574,7.70042864,129.87,129.81,7.70326159]
[1765121789775,8.42042864,129.87,129.81,7.70326159]
[1765121789982,7.70042864,129.87,129.81,7.70326159]
[1765121790179,7.70119368,129.85,129.81,7.70326159]
[1765121790614,8.42119368,129.85,129.81,8.37326159]
[1765121791871,0.72,129.84,129.8,16.28397583]
[1765121791983,0.72,129.84,129.8,16.95397583]
[1765121792184,9.52994492,129.84,129.79,8.58]
[1765121792489,8.80994492,129.83,129.79,8.58]
[1765121792802,9.52994492,129.83,129.79,8.58]
[1765121793006,0.72,129.82,129.79,8.58]
[1765121793208,8.80994492,129.81,129.76,7.70630678]
[1765121793511,8.80994492,129.81,129.76,16.28630678]
[1765121793697,8.4244519,129.8,129.76,8.58]
[1765121793899,8.80994492,129.79,129.74,16.28747856]
[1765121794097,9.52994492,129.79,129.73,0.67]
[1765121794305,0.72,129.79,129.75,7.70705811]
[1765121794504,8.58,129.81,129.74,19.26848205]
[1765121794505,17.00375299,129.81,129.74,19.26848205]
[1765121794811,16.28375299,129.81,129.76,7.70651345]
[1765121795010,0.72,129.8,129.76,7.70651345]
[1765121795397,0.72,129.8,129.76,8.37651345]
[1765121795607,16.51310431,129.82,129.77,0.67]
[1765121795608,9.52994492,129.82,129.77,0.67]
[1765121795910,0.72,129.81,129.75,0.67]
[1765121797289,8.42379026,129.81,129.75,8.3769019]
[1765121797485,0.72,129.8,129.75,8.3769019]
[1765121798815,0.72,129.8,129.76,0.67]
[1765121799012,9.52994492,129.82,129.76,0.67]
[1765121799192,9.52994492,129.82,129.77,7.70594128]
[1765121799595,9.52994492,129.82,129.78,0.67]
[1765121799803,16.28198812,129.84,129.78,0.67]
[1765121799804,9.3,129.84,129.78,0.67]
[1765121800006,0.72,129.84,129.78,0.67]
[1765121800311,0.72,129.86,129.78,0.67]
[1765121800705,0.72,129.85,129.78,0.67]
[1765121801093,8.80994492,129.86,129.78,0.67]
[1765121801313,0.72,129.87,129.79,26.96663841]
[1765121801790,0.72,129.87,129.8,0.67]
[1765121801991,17.028864,129.87,129.81,8.58]
[1765121802513,0.72,129.87,129.81,9.25]
[1765121802713,17.028864,129.87,129.82,7.70297334]
[1765121802907,17.028864,129.87,129.82,8.37297334]
[1765121803914,0.72,129.86,129.82,8.37297334]
[1765121805097,0.72,129.91,129.83,8.37201296]
[1765121805296,0.72,129.92,129.83,8.37201296]
[1765121805622,0.72,129.92,129.84,0.67]
[1765121805914,8.80994492,129.91,129.85,8.58]
[1765121806316,0.72,129.92,129.86,0.67]
[1765121806820,0.72,129.92,129.87,7.7000077]
[1765121807207,0.72,129.92,129.88,0.67]
[1765121807409,0.72,129.92,129.87,8.3700077]
[1765121807925,8.80994492,129.91,129.86,7.70042447]
[1765121808220,0.72,129.92,129.87,0.67]
[1765121809118,8.80994492,129.94,129.88,7.69941484]
[1765121809320,0.72,129.93,129.88,7.69941484]
[1765121809819,0.72,129.93,129.89,0.67]
[1765121810319,8.80994492,129.94,129.89,0.67]
[1765121810517,8.80994492,129.94,129.89,9.25]
[1765121810719,17.028864,129.95,129.89,9.25]